Workbook

Sheet Final points
B1: OEC | E1: HTM Final Points
E3: Johanna Saariluoma | I3: Claudia Moser | M3: Wies Koelewijn
E4: Presentation/accuracy | F4: Content/degree of difficulty | G4: Musical interpretation | I4: Presentation/accuracy | J4: Content/degree of difficulty | K4: Musical interpretation | M4: Presentation/accuracy | N4: Content/degree of difficulty | O4: Musical interpretation
B12: Handler / dog | D12: Country
A13: 1 | B13: =HTM!B13 -> Anja Christiansen/Feahunden's Queeny Las | D13: =HTM!D13 -> Denmark | E13: 9.1 | F13: 9.3 | G13: 9.5 | I13: 9 | J13: 9.1 | K13: 9.4 | M13: 9 | N13: 9.1 | O13: 9.2 | P13: =(E13+F13+G13+I13+J13+K13+M13+N13+O13)/3 -> 27.56666667 | Q13: 1
A14: 2 | B14: =HTM!B14 -> Vanda Gregorová/All That Brandy Gentle Mate | D14: =HTM!D14 -> Czech Republic | E14: 8.8 | F14: 8.7 | G14: 9 | I14: 9.2 | J14: 8.5 | K14: 8.9 | M14: 9 | N14: 8.9 | O14: 9 | P14: 26.66666667 | Q14: 2
A15: 3 | B15: =HTM!B15 -> Sidsel Rychter Lauridsen/Germal Prada | D15: =HTM!D15 -> Denmark | E15: 8.7 | F15: 8.6 | G15: 8.9 | I15: 9 | J15: 8.9 | K15: 9.5 | M15: 8.6 | N15: 8.6 | O15: 8.8 | P15: 26.53333333 | Q15: 5
A16: 4 | B16: =HTM!B16 -> Olga Kuzina/Almond Chokolat S Chernoy Vody | D16: =HTM!D16 -> Russia | E16: 9.1 | F16: 9.1 | G16: 9.3 | I16: 9.1 | J16: 8.8 | K16: 8.8 | M16: 9 | N16: 9 | O16: 9.1 | P16: 27.1 | Q16: 3
A17: 5 | B17: =HTM!B17 -> Marina Delsink/Gwydion van de Hoge Laer | D17: =HTM!D17 -> Holland | E17: 8.8 | F17: 8.3 | G17: 8.9 | I17: 9 | J17: 8.8 | K17: 9.1 | M17: 8.7 | N17: 8.5 | O17: 8.8 | P17: 26.3 | Q17: 8
A18: 6 | B18: =HTM!B18 -> Valentin Kuzmin/Gently Born Lodestar | D18: =HTM!D18 -> Russia | E18: 8.5 | F18: 8.9 | G18: 9.1 | I18: 8.8 | J18: 9.1 | K18: 9 | M18: 8.8 | N18: 8.5 | O18: 9 | P18: 26.56666667 | Q18: 6
A19: 7 | B19: =HTM!B19 -> Katja Tamminen/Cabaroo Glacier Gale | D19: =HTM!D19 -> Finland | E19: 8.2 | F19: 8.8 | G19: 9 | I19: 9.1 | J19: 9.2 | K19: 9.1 | M19: 8.5 | N19: 8.6 | O19: 8.8 | P19: 26.43333333 | Q19: 7
A20: 8 | B20: =HTM!B20 -> Ulrika Persson/Fladdermusens Whispers | D20: =HTM!D20 -> Sweden | E20: 8.7 | F20: 8.8 | G20: 8.6 | I20: 8.3 | J20: 8.3 | K20: 8.3 | M20: 8.7 | N20: 8.5 | O20: 8.8 | P20: 25.66666667 | Q20: 4
A21: 9 | B21: =HTM!B21 -> Polina Ilina/Indigo | D21: =HTM!D21 -> Russia | E21: 7.7 | F21: 8.4 | G21: 8.6 | I21: 8 | J21: 9 | K21: 9.2 | M21: 8.2 | N21: 9.1 | O21: 9 | P21: 25.73333333 | Q21: 10
A22: 10 | B22: =HTM!B22 -> Kath Hardman /Stillmoor Lady in Red | D22: =HTM!D22 -> Great Britain | E22: 7.8 | F22: 8.4 | G22: 8.4 | I22: 8.1 | J22: 8.6 | K22: 8.6 | M22: 8.5 | N22: 8.9 | O22: 9.2 | P22: 25.5 | Q22: 9

Sheet HTM
A2: OEC
E3: Johanna Saariluoma (FI) | I3: Claudia Moser (CH) | M3: Wies Koelewijn (NL)
B4: Heelwork to Music qualifying round | E4: Presentation/Accuracy | F4: Content/degree of difficulty | G4: Musical Interpretation | I4: Presentation/Accuracy | J4: Content/degree of difficulty | K4: Musical Interpretation | M4: Presentation/Accuracy | N4: Content/degree of difficulty | O4: Musical Interpretation
Q7: Presentation/Accuracy | U7: Content/degree of difficulty | Y7: Musical Interpretation
B12: Handler / dog | D12: Country | P12: Total
A13: 21 | B13: Anja Christiansen/Feahunden's Queeny Las | D13: Denmark | E13: 9.2 | F13: 9.1 | G13: 9.4 | I13: 9.2 | J13: 9.2 | K13: 9.4 | M13: 9 | N13: 9.1 | O13: 9.1 | P13: =(E13+F13+G13+I13+J13+K13+M13+N13+O13)/3 -> 27.56666667 | Q13: =SUM(E13+I13+M13) -> 27.4 | R13: =(Q13/30)*100 -> 91.33333333 | S13: % | T13: =IF(R13>74.9,"","IB") ->  | U13: =SUM(F13+J13+N13) -> 27.4 | V13: =(U13/30)*100 -> 91.33333333 | W13: % | X13: =IF(V13>74.9,"","IB") ->  | Y13: =SUM(G13+K13+O13) -> 27.9 | Z13: =(Y13/30)*100 -> 93 | AA13: % | AB13: =IF(Z13>74.9,"","IB") -> 
A14: 38 | B14: Vanda Gregorová/All That Brandy Gentle Mate | D14: Czech Republic | E14: 8.6 | F14: 8.7 | G14: 8.8 | I14: 9.5 | J14: 9.1 | K14: 9.3 | M14: 8.9 | N14: 8.9 | O14: 9 | P14: 26.93333333 | Q14: =SUM(E14+I14+M14) -> 27 | R14: =(Q14/30)*100 -> 90 | S14: % | T14: =IF(R14>74.9,"","IB") ->  | U14: =SUM(F14+J14+N14) -> 26.7 | V14: =(U14/30)*100 -> 89 | W14: % | X14: =IF(V14>74.9,"","IB") ->  | Y14: =SUM(G14+K14+O14) -> 27.1 | Z14: =(Y14/30)*100 -> 90.33333333 | AA14: % | AB14: =IF(Z14>74.9,"","IB") -> 
A15: 34 | B15: Sidsel Rychter Lauridsen/Germal Prada | D15: Denmark | E15: 8.3 | F15: 8.9 | G15: 8.6 | I15: 9.6 | J15: 9.4 | K15: 9.8 | M15: 8.7 | N15: 8.5 | O15: 8.8 | P15: 26.86666667 | Q15: 26.6 | R15: 88.66666667 | S15: % | U15: 26.8 | V15: 89.33333333 | W15: % | Y15: 27.2 | Z15: 90.66666667 | AA15: %
A16: 7 | B16: Olga Kuzina/Almond Chokolat S Chernoy Vody | D16: Russia | E16: 8.6 | F16: 8.8 | G16: 8.8 | I16: 9.2 | J16: 8.8 | K16: 9.3 | M16: 9 | N16: 9 | O16: 9.1 | P16: 26.86666667 | Q16: 26.8 | R16: 89.33333333 | S16: % | U16: 26.6 | V16: 88.66666667 | W16: % | Y16: 27.2 | Z16: 90.66666667 | AA16: %
A17: 18 | B17: Marina Delsink/Gwydion van de Hoge Laer | D17: Holland | E17: 8.3 | F17: 8.4 | G17: 8.8 | I17: 9.6 | J17: 9.2 | K17: 9.6 | M17: 8.3 | N17: 8.2 | O17: 8 | P17: 26.13333333 | Q17: 26.2 | R17: 87.33333333 | S17: % | U17: 25.8 | V17: 86 | W17: % | Y17: 26.4 | Z17: 88 | AA17: %
A18: 29 | B18: Valentin Kuzmin/Gently Born Lodestar | D18: Russia | E18: 8.4 | F18: 8.5 | G18: 8.6 | I18: 9.5 | J18: 9.6 | K18: 9.7 | M18: 8 | N18: 7.9 | O18: 8.2 | P18: 26.13333333 | Q18: 25.9 | R18: 86.33333333 | S18: % | U18: 26 | V18: 86.66666667 | W18: % | Y18: 26.5 | Z18: 88.33333333 | AA18: %
A19: 32 | B19: Katja Tamminen/Cabaroo Glacier Gale | D19: Finland | E19: 7.7 | F19: 8.8 | G19: 8.8 | I19: 8.9 | J19: 9.4 | K19: 9.6 | M19: 8.2 | N19: 8.3 | O19: 8.6 | P19: 26.1 | Q19: 24.8 | R19: 82.66666667 | S19: % | U19: 26.5 | V19: 88.33333333 | W19: % | Y19: 27 | Z19: 90 | AA19: %
A20: 36 | B20: Ulrika Persson/Fladdermusens Whispers | D20: Sweden | E20: 8.3 | F20: 8.7 | G20: 8.4 | I20: 8.7 | J20: 8.4 | K20: 8.4 | M20: 8.7 | N20: 8.4 | O20: 8.7 | P20: 25.56666667 | Q20: 25.7 | R20: 85.66666667 | S20: % | U20: 25.5 | V20: 85 | W20: % | Y20: 25.5 | Z20: 85 | AA20: %
A21: 39 | B21: Polina Ilina/Indigo | D21: Russia | E21: 7.4 | F21: 8 | G21: 7.8 | I21: 8 | J21: 9.3 | K21: 9.6 | M21: 8.2 | N21: 9.1 | O21: 9.1 | P21: 25.5 | Q21: 23.6 | R21: 78.66666667 | S21: % | U21: 26.4 | V21: 88 | W21: % | Y21: 26.5 | Z21: 88.33333333 | AA21: %
A22: 13 | B22: Kath Hardman /Stillmoor Lady in Red | D22: Great Britain | E22: 7.8 | F22: 8.6 | G22: 8.4 | I22: 7.5 | J22: 8.4 | K22: 8.4 | M22: 9 | N22: 9 | O22: 9.2 | P22: 25.43333333 | Q22: 24.3 | R22: 81 | S22: % | U22: 26 | V22: 86.66666667 | W22: % | Y22: 26 | Z22: 86.66666667 | AA22: %
A23: 40 | B23: Jules O'Dwyer / Van de Galeystukken Hellraiser | D23: Belgium | E23: 7.5 | F23: 7.2 | G23: 7.2 | I23: 9 | J23: 8.9 | K23: 9.1 | M23: 8.9 | N23: 9.1 | O23: 9 | P23: 25.3 | Q23: 25.4 | R23: 84.66666667 | S23: % | U23: 25.2 | V23: 84 | W23: % | Y23: 25.3 | Z23: 84.33333333 | AA23: %
A24: 17 | B24: Galina Chogovadze/Sun Light Spot | D24: Russia | E24: 7.4 | F24: 6.8 | G24: 7.3 | I24: 9 | J24: 8.9 | K24: 9.3 | M24: 8.9 | N24: 9.1 | O24: 9.1 | P24: 25.26666667 | Q24: 25.3 | R24: 84.33333333 | S24: % | U24: 24.8 | V24: 82.66666667 | W24: % | Y24: 25.7 | Z24: 85.66666667 | AA24: %
A25: 37 | B25: Jessica Karlgren/Camp Alpha's Izy | D25: Norway | E25: 7.1 | F25: 8.4 | G25: 8.6 | I25: 7.7 | J25: 9.2 | K25: 9.8 | M25: 7.3 | N25: 8.9 | O25: 8.6 | P25: 25.2 | Q25: 22.1 | R25: 73.66666667 | S25: % | T25: IB | U25: 26.5 | V25: 88.33333333 | W25: % | Y25: 27 | Z25: 90 | AA25: %
A26: 41 | B26: Christel van Boven/Gina vom Aranka House | D26: Belgium | E26: 8.9 | F26: 8.5 | G26: 7.6 | I26: 8.8 | J26: 8.4 | K26: 8.1 | M26: 8.1 | N26: 8.1 | O26: 8.6 | P26: 25.03333333 | Q26: 25.8 | R26: 86 | S26: % | U26: 25 | V26: 83.33333333 | W26: % | Y26: 24.3 | Z26: 81 | AA26: %
A27: 5 | B27: Minna Yrjana/Like a Hurricane Branwenn Brady | C27: i | D27: Finland | E27: 7.8 | F27: 7.3 | G27: 7.3 | I27: 8.5 | J27: 7.8 | K27: 9.2 | M27: 8.9 | N27: 8.8 | O27: 9 | P27: 24.86666667 | Q27: 25.2 | R27: 84 | U27: 23.9 | V27: 79.66666667 | Y27: 25.5 | Z27: 85
A28: 23 | B28: Monika Olšovská / Arsinoé z Ríše Wa | C28: i | D28: Slovakia | E28: 7.8 | F28: 7.3 | G28: 7.4 | I28: 8.6 | J28: 7.9 | K28: 9.3 | M28: 8.4 | N28: 8.2 | O28: 8.5 | P28: 24.46666667 | Q28: 24.8 | R28: 82.66666667 | U28: 23.4 | V28: 78 | Y28: 25.2 | Z28: 84
A29: 26 | B29: Helle Larssen/Littlethorn Top Fuel | D29: Denmark | E29: 7.9 | F29: 7.4 | G29: 7.4 | I29: 8.7 | J29: 9 | K29: 9.1 | M29: 7.9 | N29: 7.9 | O29: 8 | P29: 24.43333333 | Q29: 24.5 | R29: 81.66666667 | U29: 24.3 | V29: 81 | Y29: 24.5 | Z29: 81.66666667
A30: 20 | B30: Daniela Šišková/Aurora Piranha Rainy Love | D30: Czech Republic | E30: 8 | F30: 7.4 | G30: 7.3 | I30: 8.6 | J30: 8.7 | K30: 8.7 | M30: 8.1 | N30: 8 | O30: 8.4 | P30: 24.4 | Q30: 24.7 | R30: 82.33333333 | U30: 24.1 | V30: 80.33333333 | Y30: 24.4 | Z30: 81.33333333
A31: 2 | B31: Sabine Astrom/Promotion Buell Cyclone | D31: Sweden | E31: 8 | F31: 7.3 | G31: 8 | I31: 7.9 | J31: 8.9 | K31: 7.8 | M31: 8.2 | N31: 8.1 | O31: 8.6 | P31: 24.26666667 | Q31: 24.1 | R31: 80.33333333 | U31: 24.3 | V31: 81 | Y31: 24.4 | Z31: 81.33333333
A32: 4 | B32: Anne Gry Øyeflaten/Havrevingens Ambra | D32: Norway | E32: 7.8 | F32: 7.7 | G32: 6.9 | I32: 8.5 | J32: 8.7 | K32: 8.8 | M32: 8.1 | N32: 7.8 | O32: 8.4 | P32: 24.23333333 | Q32: 24.4 | R32: 81.33333333 | U32: 24.2 | V32: 80.66666667 | Y32: 24.1 | Z32: 80.33333333
A33: 9 | B33: Susann Wastenson/Skogvallarens Frodo | D33: Sweden | E33: 7.8 | F33: 8.1 | G33: 7.4 | I33: 8.3 | J33: 8.4 | K33: 8.7 | M33: 8 | N33: 7.9 | O33: 8 | P33: 24.2 | Q33: 24.1 | R33: 80.33333333 | U33: 24.4 | V33: 81.33333333 | Y33: 24.1 | Z33: 80.33333333
A34: 11 | B34: Susanna Ekblom/Cabaroo Dances on Ice | D34: Finland | E34: 7.6 | F34: 8.2 | G34: 8 | I34: 7.5 | J34: 8 | K34: 8.6 | M34: 7.9 | N34: 8 | O34: 8.6 | P34: 24.13333333 | Q34: 23 | R34: 76.66666667 | U34: 24.2 | V34: 80.66666667 | Y34: 25.2 | Z34: 84
A35: 14 | B35: Šimona Drábková/Frederica Alary Aslar | D35: Czech Republic | E35: 8 | F35: 7.7 | G35: 7.2 | I35: 8.7 | J35: 8.5 | K35: 7.9 | M35: 7.9 | N35: 8.2 | O35: 8.1 | P35: 24.06666667 | Q35: 24.6 | R35: 82 | U35: 24.4 | V35: 81.33333333 | Y35: 23.2 | Z35: 77.33333333
A36: 15 | B36: Christiane Hanchir/Funnyluna van Natterekja | D36: Belgium | E36: 7.5 | F36: 7.7 | G36: 9 | I36: 7.5 | J36: 8.5 | K36: 7.8 | M36: 8 | N36: 7.9 | O36: 8.2 | P36: 24.03333333 | Q36: 23 | R36: 76.66666667 | U36: 24.1 | V36: 80.33333333 | Y36: 25 | Z36: 83.33333333
A37: 30 | B37: Arlette Cloes / Ginger van de Duvetorre | D37: Belgium | E37: 6.9 | F37: 7 | G37: 7.1 | I37: 8 | J37: 8.5 | K37: 9 | M37: 8 | N37: 8.2 | O37: 8.5 | P37: 23.73333333 | Q37: 22.9 | R37: 76.33333333 | U37: 23.7 | V37: 79 | Y37: 24.6 | Z37: 82
A38: 19 | B38: Brigitte van Gestel/Joyful Life van Benvenida's Joy | D38: Holland | E38: 6.6 | F38: 8.3 | G38: 8.3 | I38: 6.3 | J38: 8.9 | K38: 8.4 | M38: 7.1 | N38: 8.9 | O38: 8.2 | P38: 23.66666667 | Q38: 20 | R38: 66.66666667 | T38: IB | U38: 26.1 | V38: 87 | Y38: 24.9 | Z38: 83
A39: 31 | B39: Esther Niemeijer/Cookie's Fortune Cowgirl Pride | D39: Holland | E39: 7.4 | F39: 7.3 | G39: 8.2 | I39: 6.6 | J39: 8.2 | K39: 8.6 | M39: 7.8 | N39: 8 | O39: 8.4 | P39: 23.5 | Q39: 21.8 | R39: 72.66666667 | T39: IB | U39: 23.5 | V39: 78.33333333 | Y39: 25.2 | Z39: 84
A40: 8 | B40: Helle Larssen/Littlethorn Avensis | D40: Denmark | E40: 7.8 | F40: 7 | G40: 7.4 | I40: 8 | J40: 7.6 | K40: 8.6 | M40: 8 | N40: 7.8 | O40: 8.1 | P40: 23.43333333 | Q40: 23.8 | R40: 79.33333333 | U40: 22.4 | V40: 74.66666667 | X40: IB | Y40: 24.1 | Z40: 80.33333333
A41: 1 | B41: Monika Gehrke/Nice of you to Come Bye Gigolo Jan | D41: Germany | E41: 7.3 | F41: 8.6 | G41: 7.5 | I41: 6.4 | J41: 8.2 | K41: 7.8 | M41: 8 | N41: 7.9 | O41: 8.5 | P41: 23.4 | Q41: 21.7 | R41: 72.33333333 | T41: IB | U41: 24.7 | V41: 82.33333333 | Y41: 23.8 | Z41: 79.33333333
A42: 10 | B42: Carina Persson/Obetes Pop | D42: Sweden | E42: 7.5 | F42: 7.4 | G42: 7.1 | I42: 7.9 | J42: 8.1 | K42: 7.7 | M42: 7.8 | N42: 7.9 | O42: 8 | P42: 23.13333333
A43: 33 | B43: Sini Eriksson/Mutkis Onnensoturi | D43: Finland | E43: 7.2 | F43: 7.2 | G43: 7.5 | I43: 7.3 | J43: 8 | K43: 8.1 | M43: 7.6 | N43: 7.9 | O43: 8.4 | P43: 23.06666667
A44: 27 | B44: Corinne Médauer/Vulcain du Domaine de Joléa | C44: i | D44: France | E44: 7.5 | F44: 7.2 | G44: 7.1 | I44: 8 | J44: 8 | K44: 6.6 | M44: 7.8 | N44: 7.9 | O44: 8 | P44: 22.7
A45: 12 | B45: Lisa Joachimsky / Foxita | D45: Germany | E45: 6.9 | F45: 7.1 | G45: 6.8 | I45: 7.1 | J45: 7.6 | K45: 8.1 | M45: 7.7 | N45: 8 | O45: 8.1 | P45: 22.46666667
A46: 16 | B46: Jackie de Jong / Jackie's Indi | D46: Great Britain | E46: 7.8 | F46: 7.4 | G46: 7.1 | I46: 7 | J46: 6.9 | K46: 6.7 | M46: 7.8 | N46: 7.6 | O46: 8 | P46: 22.1
A47: 35 | B47: Lesley Neville/Red Hot Hamish at Choxxstart | D47: Great Britain | E47: 6.7 | F47: 6.8 | G47: 6.8 | I47: 7.3 | J47: 6.8 | K47: 7.8 | M47: 7.4 | N47: 7.9 | O47: 7.9 | P47: 21.8
A48: 6 | B48: Anja Jakob/Dancing little Shadow of Fast Crazy Fly | D48: Germany | E48: 7.6 | F48: 6.8 | G48: 6.9 | I48: 7 | J48: 6.5 | K48: 7.7 | M48: 7.6 | N48: 7.2 | O48: 8 | P48: 21.76666667
A49: 24 | B49: Sofie Greven/Detania Herst Roos | D49: Holland | E49: 6.8 | F49: 5 | G49: 6.8 | I49: 6.7 | J49: 7.3 | K49: 7.1 | M49: 7.5 | N49: 7.1 | O49: 7.1 | P49: 20.46666667
A50: 22 | B50: Katharina von Dach/Pyla | C50: i | D50: Switzerland | E50: 7 | F50: 4.3 | G50: 6.7 | I50: 6.7 | J50: 4.1 | K50: 8.5 | M50: 7.8 | N50: 7.6 | O50: 8 | P50: 20.23333333
A51: 25 | B51: Dylan Smith/Correidhu Chase | D51: Great Britain | E51: 6.6 | F51: 4.3 | G51: 6.7 | I51: 6.5 | J51: 6.9 | K51: 7 | M51: 6.2 | N51: 6.2 | O51: 7 | P51: 19.13333333
A52: 3 | B52: Marina Stilkenboom/Johnny the Little Black Devil | C52: i | D52: Germany | E52: 6.6 | F52: 4 | G52: 5.9 | I52: 5.3 | J52: 4.2 | K52: 6.2 | M52: 6.2 | N52: 6 | O52: 7 | P52: 17.13333333
A53: 28 | B53: Christiane Gioanni/Eldorado Columbian Rush de Solemel | C53: i | D53: France | E53: 5 | F53: 4 | G53: 4.9 | I53: 5.2 | J53: 6.2 | K53: 6.8 | M53: 6 | N53: 5.9 | O53: 6.5 | P53: 16.83333333

Sheet Results
A5: Judge 1 | C5: Johanna Saariluoma (FI)
A7: Judge 2 | C7: Claudia Moser (CH)
A9: Judge 3 | C9: Wies Koelewijn (NL)
I11: Final points
A12: Place | B12: Country | C12: Handler/dog | D12: 1 | E12: 2 | F12: 3 | G12: Points | I12: 1 | J12: 2 | K12: 3 | L12: Point | M12: Total Points
A13: 1 | B13: =HTM!D13 -> Denmark | C13: =HTM!B13 -> Anja Christiansen/Feahunden's Queeny Las | D13: =(HTM!E13+HTM!F13+HTM!G13) -> 27.7 | E13: =(HTM!I13+HTM!J13+HTM!K13) -> 27.8 | F13: =(HTM!M13+HTM!N13+HTM!O13) -> 27.2 | G13: =(D13+E13+F13)/3 -> 27.56666667 | I13: =('Final points'!E13+'Final points'!F13+'Final points'!G13) -> 27.9 | J13: =('Final points'!I13+'Final points'!J13+'Final points'!K13) -> 27.5 | K13: =('Final points'!M13+'Final points'!N13+'Final points'!O13) -> 27.3 | L13: =(I13+J13+K13)/3 -> 27.56666667 | M13: =(G13+L13) -> 55.13333333 | N13: 1
A14: 2 | B14: =HTM!D14 -> Czech Republic | C14: =HTM!B14 -> Vanda Gregorová/All That Brandy Gentle Mate | D14: =(HTM!E14+HTM!F14+HTM!G14) -> 26.1 | E14: =(HTM!I14+HTM!J14+HTM!K14) -> 27.9 | F14: =(HTM!M14+HTM!N14+HTM!O14) -> 26.8 | G14: =(D14+E14+F14)/3 -> 26.93333333 | I14: =('Final points'!E14+'Final points'!F14+'Final points'!G14) -> 26.5 | J14: =('Final points'!I14+'Final points'!J14+'Final points'!K14) -> 26.6 | K14: =('Final points'!M14+'Final points'!N14+'Final points'!O14) -> 26.9 | L14: =(I14+J14+K14)/3 -> 26.66666667 | M14: =(G14+L14) -> 53.6 | N14: 3
A15: 3 | B15: =HTM!D15 -> Denmark | C15: =HTM!B15 -> Sidsel Rychter Lauridsen/Germal Prada | D15: =(HTM!E15+HTM!F15+HTM!G15) -> 25.8 | E15: =(HTM!I15+HTM!J15+HTM!K15) -> 28.8 | F15: =(HTM!M15+HTM!N15+HTM!O15) -> 26 | G15: 26.86666667 | I15: =('Final points'!E15+'Final points'!F15+'Final points'!G15) -> 26.2 | J15: =('Final points'!I15+'Final points'!J15+'Final points'!K15) -> 27.4 | K15: =('Final points'!M15+'Final points'!N15+'Final points'!O15) -> 26 | L15: 26.53333333 | M15: 53.4 | N15: 4
A16: 4 | B16: =HTM!D16 -> Russia | C16: =HTM!B16 -> Olga Kuzina/Almond Chokolat S Chernoy Vody | D16: =(HTM!E16+HTM!F16+HTM!G16) -> 26.2 | E16: =(HTM!I16+HTM!J16+HTM!K16) -> 27.3 | F16: =(HTM!M16+HTM!N16+HTM!O16) -> 27.1 | G16: 26.86666667 | I16: =('Final points'!E16+'Final points'!F16+'Final points'!G16) -> 27.5 | J16: =('Final points'!I16+'Final points'!J16+'Final points'!K16) -> 26.7 | K16: =('Final points'!M16+'Final points'!N16+'Final points'!O16) -> 27.1 | L16: 27.1 | M16: 53.96666667 | N16: 2
A17: 5 | B17: =HTM!D17 -> Holland | C17: =HTM!B17 -> Marina Delsink/Gwydion van de Hoge Laer | D17: =(HTM!E17+HTM!F17+HTM!G17) -> 25.5 | E17: =(HTM!I17+HTM!J17+HTM!K17) -> 28.4 | F17: =(HTM!M17+HTM!N17+HTM!O17) -> 24.5 | G17: 26.13333333 | I17: =('Final points'!E17+'Final points'!F17+'Final points'!G17) -> 26 | J17: =('Final points'!I17+'Final points'!J17+'Final points'!K17) -> 26.9 | K17: =('Final points'!M17+'Final points'!N17+'Final points'!O17) -> 26 | L17: 26.3 | M17: 52.43333333 | N17: 7
A18: 6 | B18: =HTM!D18 -> Russia | C18: =HTM!B18 -> Valentin Kuzmin/Gently Born Lodestar | D18: =(HTM!E18+HTM!F18+HTM!G18) -> 25.5 | E18: =(HTM!I18+HTM!J18+HTM!K18) -> 28.8 | F18: =(HTM!M18+HTM!N18+HTM!O18) -> 24.1 | G18: 26.13333333 | I18: =('Final points'!E18+'Final points'!F18+'Final points'!G18) -> 26.5 | J18: =('Final points'!I18+'Final points'!J18+'Final points'!K18) -> 26.9 | K18: =('Final points'!M18+'Final points'!N18+'Final points'!O18) -> 26.3 | L18: 26.56666667 | M18: 52.7 | N18: 5
A19: 7 | B19: =HTM!D19 -> Finland | C19: =HTM!B19 -> Katja Tamminen/Cabaroo Glacier Gale | D19: =(HTM!E19+HTM!F19+HTM!G19) -> 25.3 | E19: =(HTM!I19+HTM!J19+HTM!K19) -> 27.9 | F19: =(HTM!M19+HTM!N19+HTM!O19) -> 25.1 | G19: 26.1 | I19: =('Final points'!E19+'Final points'!F19+'Final points'!G19) -> 26 | J19: =('Final points'!I19+'Final points'!J19+'Final points'!K19) -> 27.4 | K19: =('Final points'!M19+'Final points'!N19+'Final points'!O19) -> 25.9 | L19: 26.43333333 | M19: 52.53333333 | N19: 6
A20: 8 | B20: =HTM!D20 -> Sweden | C20: =HTM!B20 -> Ulrika Persson/Fladdermusens Whispers | D20: =(HTM!E20+HTM!F20+HTM!G20) -> 25.4 | E20: =(HTM!I20+HTM!J20+HTM!K20) -> 25.5 | F20: =(HTM!M20+HTM!N20+HTM!O20) -> 25.8 | G20: 25.56666667 | I20: =('Final points'!E20+'Final points'!F20+'Final points'!G20) -> 26.1 | J20: =('Final points'!I20+'Final points'!J20+'Final points'!K20) -> 24.9 | K20: =('Final points'!M20+'Final points'!N20+'Final points'!O20) -> 26 | L20: 25.66666667 | M20: 51.23333333 | N20: 8
A21: 9 | B21: =HTM!D21 -> Russia | C21: =HTM!B21 -> Polina Ilina/Indigo | D21: =(HTM!E21+HTM!F21+HTM!G21) -> 23.2 | E21: =(HTM!I21+HTM!J21+HTM!K21) -> 26.9 | F21: =(HTM!M21+HTM!N21+HTM!O21) -> 26.4 | G21: 25.5 | I21: =('Final points'!E21+'Final points'!F21+'Final points'!G21) -> 24.7 | J21: =('Final points'!I21+'Final points'!J21+'Final points'!K21) -> 26.2 | K21: =('Final points'!M21+'Final points'!N21+'Final points'!O21) -> 26.3 | L21: 25.73333333 | M21: 51.23333333
A22: 10 | B22: =HTM!D22 -> Great Britain | C22: =HTM!B22 -> Kath Hardman /Stillmoor Lady in Red | D22: =(HTM!E22+HTM!F22+HTM!G22) -> 24.8 | E22: =(HTM!I22+HTM!J22+HTM!K22) -> 24.3 | F22: =(HTM!M22+HTM!N22+HTM!O22) -> 27.2 | G22: 25.43333333 | I22: =('Final points'!E22+'Final points'!F22+'Final points'!G22) -> 24.6 | J22: =('Final points'!I22+'Final points'!J22+'Final points'!K22) -> 25.3 | K22: =('Final points'!M22+'Final points'!N22+'Final points'!O22) -> 26.6 | L22: 25.5 | M22: 50.93333333
A23: 11 | B23: =HTM!D23 -> Belgium | C23: =HTM!B23 -> Jules O'Dwyer / Van de Galeystukken Hellraiser | D23: =(HTM!E23+HTM!F23+HTM!G23) -> 21.9 | E23: =(HTM!I23+HTM!J23+HTM!K23) -> 27 | F23: =(HTM!M23+HTM!N23+HTM!O23) -> 27 | G23: 25.3 | M23: 25.3
A24: 12 | B24: =HTM!D24 -> Russia | C24: =HTM!B24 -> Galina Chogovadze/Sun Light Spot | D24: =(HTM!E24+HTM!F24+HTM!G24) -> 21.5 | E24: =(HTM!I24+HTM!J24+HTM!K24) -> 27.2 | F24: =(HTM!M24+HTM!N24+HTM!O24) -> 27.1 | G24: 25.26666667 | M24: 25.26666667
A25: 13 | B25: =HTM!D25 -> Norway | C25: =HTM!B25 -> Jessica Karlgren/Camp Alpha's Izy | D25: =(HTM!E25+HTM!F25+HTM!G25) -> 24.1 | E25: =(HTM!I25+HTM!J25+HTM!K25) -> 26.7 | F25: =(HTM!M25+HTM!N25+HTM!O25) -> 24.8 | G25: 25.2 | M25: 25.2
A26: 14 | B26: =HTM!D26 -> Belgium | C26: =HTM!B26 -> Christel van Boven/Gina vom Aranka House | D26: =(HTM!E26+HTM!F26+HTM!G26) -> 25 | E26: =(HTM!I26+HTM!J26+HTM!K26) -> 25.3 | F26: =(HTM!M26+HTM!N26+HTM!O26) -> 24.8 | G26: 25.03333333 | M26: 25.03333333
A27: 15 | B27: =HTM!D27 -> Finland | C27: =HTM!B27 -> Minna Yrjana/Like a Hurricane Branwenn Brady | D27: =(HTM!E27+HTM!F27+HTM!G27) -> 22.4 | E27: =(HTM!I27+HTM!J27+HTM!K27) -> 25.5 | F27: =(HTM!M27+HTM!N27+HTM!O27) -> 26.7 | G27: =(D27+E27+F27)/3 -> 24.86666667 | M27: =(G27+L27) -> 24.86666667
A28: 16 | B28: =HTM!D28 -> Slovakia | C28: =HTM!B28 -> Monika Olšovská / Arsinoé z Ríše Wa | D28: =(HTM!E28+HTM!F28+HTM!G28) -> 22.5 | E28: =(HTM!I28+HTM!J28+HTM!K28) -> 25.8 | F28: =(HTM!M28+HTM!N28+HTM!O28) -> 25.1 | G28: 24.46666667 | M28: 24.46666667
A29: 17 | B29: =HTM!D29 -> Denmark | C29: =HTM!B29 -> Helle Larssen/Littlethorn Top Fuel | D29: =(HTM!E29+HTM!F29+HTM!G29) -> 22.7 | E29: =(HTM!I29+HTM!J29+HTM!K29) -> 26.8 | F29: =(HTM!M29+HTM!N29+HTM!O29) -> 23.8 | G29: 24.43333333 | M29: 24.43333333
A30: 18 | B30: =HTM!D30 -> Czech Republic | C30: =HTM!B30 -> Daniela Šišková/Aurora Piranha Rainy Love | D30: =(HTM!E30+HTM!F30+HTM!G30) -> 22.7 | E30: =(HTM!I30+HTM!J30+HTM!K30) -> 26 | F30: =(HTM!M30+HTM!N30+HTM!O30) -> 24.5 | G30: 24.4 | M30: 24.4
A31: 19 | B31: =HTM!D31 -> Sweden | C31: =HTM!B31 -> Sabine Astrom/Promotion Buell Cyclone | D31: =(HTM!E31+HTM!F31+HTM!G31) -> 23.3 | E31: =(HTM!I31+HTM!J31+HTM!K31) -> 24.6 | F31: =(HTM!M31+HTM!N31+HTM!O31) -> 24.9 | G31: 24.26666667 | M31: 24.26666667
A32: 20 | B32: =HTM!D32 -> Norway | C32: =HTM!B32 -> Anne Gry Øyeflaten/Havrevingens Ambra | D32: =(HTM!E32+HTM!F32+HTM!G32) -> 22.4 | E32: =(HTM!I32+HTM!J32+HTM!K32) -> 26 | F32: =(HTM!M32+HTM!N32+HTM!O32) -> 24.3 | G32: 24.23333333 | M32: 24.23333333
A33: 21 | B33: =HTM!D33 -> Sweden | C33: =HTM!B33 -> Susann Wastenson/Skogvallarens Frodo | D33: =(HTM!E33+HTM!F33+HTM!G33) -> 23.3 | E33: =(HTM!I33+HTM!J33+HTM!K33) -> 25.4 | F33: =(HTM!M33+HTM!N33+HTM!O33) -> 23.9 | G33: 24.2 | M33: 24.2
A34: 22 | B34: =HTM!D34 -> Finland | C34: =HTM!B34 -> Susanna Ekblom/Cabaroo Dances on Ice | D34: =(HTM!E34+HTM!F34+HTM!G34) -> 23.8 | E34: =(HTM!I34+HTM!J34+HTM!K34) -> 24.1 | F34: =(HTM!M34+HTM!N34+HTM!O34) -> 24.5 | G34: 24.13333333 | M34: 24.13333333
A35: 23 | B35: =HTM!D35 -> Czech Republic | C35: =HTM!B35 -> Šimona Drábková/Frederica Alary Aslar | D35: =(HTM!E35+HTM!F35+HTM!G35) -> 22.9 | E35: =(HTM!I35+HTM!J35+HTM!K35) -> 25.1 | F35: =(HTM!M35+HTM!N35+HTM!O35) -> 24.2 | G35: 24.06666667 | M35: 24.06666667
A36: 24 | B36: =HTM!D36 -> Belgium | C36: =HTM!B36 -> Christiane Hanchir/Funnyluna van Natterekja | D36: =(HTM!E36+HTM!F36+HTM!G36) -> 24.2 | E36: =(HTM!I36+HTM!J36+HTM!K36) -> 23.8 | F36: =(HTM!M36+HTM!N36+HTM!O36) -> 24.1 | G36: 24.03333333 | M36: 24.03333333
A37: 25 | B37: =HTM!D37 -> Belgium | C37: =HTM!B37 -> Arlette Cloes / Ginger van de Duvetorre | D37: =(HTM!E37+HTM!F37+HTM!G37) -> 21 | E37: =(HTM!I37+HTM!J37+HTM!K37) -> 25.5 | F37: =(HTM!M37+HTM!N37+HTM!O37) -> 24.7 | G37: 23.73333333 | M37: 23.73333333
A38: 26 | B38: =HTM!D38 -> Holland | C38: =HTM!B38 -> Brigitte van Gestel/Joyful Life van Benvenida's Joy | D38: =(HTM!E38+HTM!F38+HTM!G38) -> 23.2 | E38: =(HTM!I38+HTM!J38+HTM!K38) -> 23.6 | F38: =(HTM!M38+HTM!N38+HTM!O38) -> 24.2 | G38: 23.66666667 | M38: 23.66666667
A39: 27 | B39: =HTM!D39 -> Holland | C39: =HTM!B39 -> Esther Niemeijer/Cookie's Fortune Cowgirl Pride | D39: =(HTM!E39+HTM!F39+HTM!G39) -> 22.9 | E39: =(HTM!I39+HTM!J39+HTM!K39) -> 23.4 | F39: =(HTM!M39+HTM!N39+HTM!O39) -> 24.2 | G39: 23.5 | M39: 23.5
A40: 28 | B40: =HTM!D40 -> Denmark | C40: =HTM!B40 -> Helle Larssen/Littlethorn Avensis | D40: =(HTM!E40+HTM!F40+HTM!G40) -> 22.2 | E40: =(HTM!I40+HTM!J40+HTM!K40) -> 24.2 | F40: =(HTM!M40+HTM!N40+HTM!O40) -> 23.9 | G40: 23.43333333 | M40: 23.43333333
A41: 29 | B41: =HTM!D41 -> Germany | C41: =HTM!B41 -> Monika Gehrke/Nice of you to Come Bye Gigolo Jan | D41: =(HTM!E41+HTM!F41+HTM!G41) -> 23.4 | E41: =(HTM!I41+HTM!J41+HTM!K41) -> 22.4 | F41: =(HTM!M41+HTM!N41+HTM!O41) -> 24.4 | G41: 23.4 | M41: 23.4
A42: 30 | B42: =HTM!D42 -> Sweden | C42: =HTM!B42 -> Carina Persson/Obetes Pop | D42: =(HTM!E42+HTM!F42+HTM!G42) -> 22 | E42: =(HTM!I42+HTM!J42+HTM!K42) -> 23.7 | F42: =(HTM!M42+HTM!N42+HTM!O42) -> 23.7 | G42: 23.13333333 | M42: 23.13333333
A43: 31 | B43: =HTM!D43 -> Finland | C43: =HTM!B43 -> Sini Eriksson/Mutkis Onnensoturi | D43: =(HTM!E43+HTM!F43+HTM!G43) -> 21.9 | E43: =(HTM!I43+HTM!J43+HTM!K43) -> 23.4 | F43: =(HTM!M43+HTM!N43+HTM!O43) -> 23.9 | G43: =(D43+E43+F43)/3 -> 23.06666667 | M43: =(G43+L43) -> 23.06666667
A44: 32 | B44: =HTM!D44 -> France | C44: =HTM!B44 -> Corinne Médauer/Vulcain du Domaine de Joléa | D44: =(HTM!E44+HTM!F44+HTM!G44) -> 21.8 | E44: =(HTM!I44+HTM!J44+HTM!K44) -> 22.6 | F44: =(HTM!M44+HTM!N44+HTM!O44) -> 23.7 | G44: 22.7 | M44: 22.7
A45: 33 | B45: =HTM!D45 -> Germany | C45: =HTM!B45 -> Lisa Joachimsky / Foxita | D45: =(HTM!E45+HTM!F45+HTM!G45) -> 20.8 | E45: =(HTM!I45+HTM!J45+HTM!K45) -> 22.8 | F45: =(HTM!M45+HTM!N45+HTM!O45) -> 23.8 | G45: 22.46666667 | M45: 22.46666667
A46: 34 | B46: =HTM!D46 -> Great Britain | C46: =HTM!B46 -> Jackie de Jong / Jackie's Indi | D46: =(HTM!E46+HTM!F46+HTM!G46) -> 22.3 | E46: =(HTM!I46+HTM!J46+HTM!K46) -> 20.6 | F46: =(HTM!M46+HTM!N46+HTM!O46) -> 23.4 | G46: 22.1 | M46: 22.1
A47: 35 | B47: =HTM!D47 -> Great Britain | C47: =HTM!B47 -> Lesley Neville/Red Hot Hamish at Choxxstart | D47: =(HTM!E47+HTM!F47+HTM!G47) -> 20.3 | E47: =(HTM!I47+HTM!J47+HTM!K47) -> 21.9 | F47: =(HTM!M47+HTM!N47+HTM!O47) -> 23.2 | G47: 21.8 | M47: 21.8
A48: 36 | B48: =HTM!D48 -> Germany | C48: =HTM!B48 -> Anja Jakob/Dancing little Shadow of Fast Crazy Fly | D48: =(HTM!E48+HTM!F48+HTM!G48) -> 21.3 | E48: =(HTM!I48+HTM!J48+HTM!K48) -> 21.2 | F48: =(HTM!M48+HTM!N48+HTM!O48) -> 22.8 | G48: 21.76666667 | M48: 21.76666667
A49: 37 | B49: =HTM!D49 -> Holland | C49: =HTM!B49 -> Sofie Greven/Detania Herst Roos | D49: =(HTM!E49+HTM!F49+HTM!G49) -> 18.6 | E49: =(HTM!I49+HTM!J49+HTM!K49) -> 21.1 | F49: =(HTM!M49+HTM!N49+HTM!O49) -> 21.7 | G49: 20.46666667 | M49: 20.46666667
A50: 38 | B50: =HTM!D50 -> Switzerland | C50: =HTM!B50 -> Katharina von Dach/Pyla | D50: =(HTM!E50+HTM!F50+HTM!G50) -> 18 | E50: =(HTM!I50+HTM!J50+HTM!K50) -> 19.3 | F50: =(HTM!M50+HTM!N50+HTM!O50) -> 23.4 | G50: 20.23333333 | M50: 20.23333333
A51: 39 | B51: =HTM!D51 -> Great Britain | C51: =HTM!B51 -> Dylan Smith/Correidhu Chase | D51: =(HTM!E51+HTM!F51+HTM!G51) -> 17.6 | E51: =(HTM!I51+HTM!J51+HTM!K51) -> 20.4 | F51: =(HTM!M51+HTM!N51+HTM!O51) -> 19.4 | G51: 19.13333333 | M51: 19.13333333
A52: 40 | B52: =HTM!D52 -> Germany | C52: =HTM!B52 -> Marina Stilkenboom/Johnny the Little Black Devil | D52: =(HTM!E52+HTM!F52+HTM!G52) -> 16.5 | E52: =(HTM!I52+HTM!J52+HTM!K52) -> 15.7 | F52: =(HTM!M52+HTM!N52+HTM!O52) -> 19.2 | G52: 17.13333333 | M52: 17.13333333
A53: 41 | B53: =HTM!D53 -> France | C53: =HTM!B53 -> Christiane Gioanni/Eldorado Columbian Rush de Solemel | D53: =(HTM!E53+HTM!F53+HTM!G53) -> 13.9 | E53: =(HTM!I53+HTM!J53+HTM!K53) -> 18.2 | F53: =(HTM!M53+HTM!N53+HTM!O53) -> 18.4 | G53: 16.83333333 | M53: 16.83333333

Sheet Team results
A1: HTM OEC Team Results
A3: Country | B3: Handler/dog | C3: Points | D3: Total points | E3: Place
A4: Belgium | B4: Jules O'Dwyer / Van de Galeystukken Hellraiser | C4: 25.3 | D4: =LARGE(C4:C7,1)+LARGE(C4:C7,2)+LARGE(C4:C7,3) -> 74.36
A5: Belgium | B5: Christel van Boven/Gina vom Aranka House | C5: 25.03 | D5: =LARGE(C4:C7,1)+LARGE(C4:C7,2)+LARGE(C4:C7,3) -> 74.36 | E5: 4
A6: Belgium | B6: Arlette Cloes / Ginger van de Duvetorre | C6: 23.73 | D6: =LARGE(C4:C7,1)+LARGE(C4:C7,2)+LARGE(C4:C7,3) -> 74.36
A7: Belgium | B7: Christiane Hanchir/Funnyluna van Natterekja | C7: 24.03 | D7: =LARGE(C4:C7,1)+LARGE(C4:C7,2)+LARGE(C4:C7,3) -> 74.36
A8: Czech Republic | B8: Vanda Gregorová/All That Brandy Gentle Mate | C8: 26.93
A9: Czech Republic | B9: Daniela Šišková/Aurora Piranha Rainy Love | C9: 24.4 | D9: =LARGE(C8:C11,1)+LARGE(C8:C11,2)+LARGE(C8:C11,3) -> 75.4 | E9: 3
A10: Czech Republic | B10: Šimona Drábková/Frederica Alary Aslar | C10: 24.07
C11: 0
A12: Denmark | B12: Sidsel Rychter Lauridsen/Germal Prada | C12: 26.87 | D12: =LARGE(C12:C15,1)+LARGE(C12:C15,2)+LARGE(C12:C15,3) -> 78.87
A13: Denmark | B13: Helle Larssen/Littlethorn Avensis | C13: 23.43 | D13: =LARGE(C12:C15,1)+LARGE(C12:C15,2)+LARGE(C12:C15,3) -> 78.87 | E13: 1
A14: Denmark | B14: Helle Larssen/Littlethorn Top Fuel | C14: 24.43 | D14: =LARGE(C12:C15,1)+LARGE(C12:C15,2)+LARGE(C12:C15,3) -> 78.87
A15: Denmark | B15: Anja Christiansen/Feahunden's Queeny Las | C15: 27.57 | D15: =LARGE(C12:C15,1)+LARGE(C12:C15,2)+LARGE(C12:C15,3) -> 78.87
A16: Germany | B16: Monika Gehrke/Nice of you to Come Bye Gigola Jan | C16: 23.4 | D16: =LARGE(C16:C19,1)+LARGE(C16:C19,2)+LARGE(C16:C19,3) -> 67.64
A17: Germany | B17: Lisa Joachimsky / Foxita | C17: 22.47 | D17: =LARGE(C16:C19,1)+LARGE(C16:C19,2)+LARGE(C16:C19,3) -> 67.64 | E17: 9
A18: Germany | B18: Anja Jakob/Dancing little Shadow of Fast Crazy Fly | C18: 21.77 | D18: =LARGE(C16:C19,1)+LARGE(C16:C19,2)+LARGE(C16:C19,3) -> 67.64
C19: 0 | D19: =LARGE(C16:C19,1)+LARGE(C16:C19,2)+LARGE(C16:C19,3) -> 67.64
A20: Finland | B20: Katja Tamminen/Cabaroo Glacier Gale | C20: 26.1
A21: Finland | B21: Susanna Ekblom/Cabaroo Dances on Ice | C21: 24.13 | D21: =LARGE(C20:C23,1)+LARGE(C20:C23,2)+LARGE(C20:C23,3) -> 73.3 | E21: 6
A22: Finland | B22: Sini Eriksson/Mutkis Onnensoturi | C22: 23.07
C23: 0
A24: Great Britain | B24: Kath Hardman /Stillmoor Lady in Red | C24: 25.43 | D24: =LARGE(C24:C27,1)+LARGE(C24:C27,2)+LARGE(C24:C27,3) -> 69.33
A25: Great Britain | B25: Jackie de Jong / Jackie's Indi | C25: 22.1 | D25: =LARGE(C24:C27,1)+LARGE(C24:C27,2)+LARGE(C24:C27,3) -> 69.33 | E25: 8
A26: Great Britain | B26: Dylan Smith/Correidhu Chase | C26: 19.13 | D26: =LARGE(C24:C27,1)+LARGE(C24:C27,2)+LARGE(C24:C27,3) -> 69.33
A27: Great Britain | B27: Lesley Neville/Red Hot Hamish at Chowxxstart | C27: 21.8 | D27: =LARGE(C24:C27,1)+LARGE(C24:C27,2)+LARGE(C24:C27,3) -> 69.33
A28: Holland | B28: Marina Delsink/Gwydion van de Hoge Laer | C28: 26.13 | D28: =LARGE(C28:C31,1)+LARGE(C28:C31,2)+LARGE(C28:C31,3) -> 73.3
A29: Holland | B29: Esther Niemeijer/Cookie's Fortune Cowgirl Pride | C29: 23.5 | D29: =LARGE(C28:C31,1)+LARGE(C28:C31,2)+LARGE(C28:C31,3) -> 73.3 | E29: 6
A30: Holland | B30: Brigitte van Gestel/Joyful Life van Benvenida's Joy | C30: 23.67 | D30: =LARGE(C28:C31,1)+LARGE(C28:C31,2)+LARGE(C28:C31,3) -> 73.3
A31: Holland | B31: Sofie Greven/Detania Herst Roos | C31: 20.47 | D31: =LARGE(C28:C31,1)+LARGE(C28:C31,2)+LARGE(C28:C31,3) -> 73.3
A32: Russia | B32: Valentin Kuzmin/Gently Born Lodestar | C32: 26.13 | D32: =LARGE(C32:C35,1)+LARGE(C32:C35,2)+LARGE(C32:C35,3) -> 78.5
A33: Russia | B33: Olga Kuzina/Almond Chokolat S Chernoy Vody | C33: 26.87 | D33: =LARGE(C32:C35,1)+LARGE(C32:C35,2)+LARGE(C32:C35,3) -> 78.5 | E33: 2
A34: Russia | B34: Galina Chogovadze/Sun Light Spot | C34: 25.27
A35: Russia | B35: Polina Ilina/Indigo | C35: 25.5
A36: Sweden | B36: Susann Wastenson/Skogvallarens Frodo | C36: 24.2 | D36: =LARGE(C36:C39,1)+LARGE(C36:C39,2)+LARGE(C36:C39,3) -> 74.04
A37: Sweden | B37: Sabine Astrom/Promotion Buell Cyclone | C37: 24.27 | D37: =LARGE(C36:C39,1)+LARGE(C36:C39,2)+LARGE(C36:C39,3) -> 74.04 | E37: 5
A38: Sweden | B38: Ulrika Persson/Fladdermusens Whispers | C38: 25.57 | D38: =LARGE(C36:C39,1)+LARGE(C36:C39,2)+LARGE(C36:C39,3) -> 74.04
A39: Sweden | B39: Carina Persson/Obetes Pop | C39: 23.13 | D39: =LARGE(C36:C39,1)+LARGE(C36:C39,2)+LARGE(C36:C39,3) -> 74.04

Sheet Starting order
A2: Handler / dog | C2: Country | D2: start | E2: Music
A3: Monika Gehrke/Nice of you to Come Bye Gigola Jan | C3: Germany | D3: 1
A4: Sabine Astrom/Promotion Buell Cyclone | C4: Sweden | D4: 2
A5: Marina Stilkenboom/Johnny the Little Black Devil | C5: Germany | D5: 3
A6: Anne Gry Øyeflaten/Havrevingens Ambra | C6: Norway | D6: 4
A7: Minna Yrjana/Like a Hurricane Branwenn Brady | C7: Finland | D7: 5
A8: Anja Jakob/Dancing little Shadow of Fast Crazy Fly | C8: Germany | D8: 6
A9: Olga Kuzina/Almond Chokolat S Chernoy Vody | C9: Russia | D9: 7
A10: Helle Larssen/Littlethorn Avensis | C10: Denmark | D10: 8
A11: Susann Wastenson/Skogvallarens Frodo | C11: Sweden | D11: 9
A12: Carina Persson/Obetes Pop | C12: Sweden | D12: 10
A13: Susanna Ekblom/Cabaroo Dances on Ice | C13: Finland | D13: 11
A14: Lisa Joachimsky / Foxita | C14: Germany | D14: 12
A15: Kath Hardman /Stillmoor Lady in Red | C15: Great Britain | D15: 13
A16: Šimona Drábková/Frederica Alary Aslar | C16: Czech Republic | D16: 14
A17: Christiane Hanchir/Funnyluna van Natterekja | C17: Belgium | D17: 15
A18: Jackie de Jong / Jackie's Indi | C18: Great Britain | D18: 16
A19: Galina Chogovadze/Sun Light Spot | C19: Russia | D19: 17
A20: Marina Delsink/Gwydion van de Hoge Laer | C20: Holland | D20: 18
A21: Brigitte van Gestel/Joyful Life van Benvenida's Joy | C21: Holland | D21: 19
A22: Daniela Šišková/Aurora Piranha Rainy Love | C22: Czech Republic | D22: 20
A23: Anja Christiansen/Feahunden's Queeny Las | C23: Denmark | D23: 21
A24: Katharina von Dach/Pyla | C24: Switzerland | D24: 22
A25: Monika Olšovská / Arsinoé z Ríše Wa | C25: Slovakia | D25: 23
A26: Sofie Greven/Detania Herst Roos | C26: Holland | D26: 24
A27: Dylan Smith/Correidhu Chase | C27: Great Britain | D27: 25
A28: Helle Larssen/Littlethorn Top Fuel | C28: Denmark | D28: 26
A29: Corinne Médauer/Vulcain du Domaine de Joléa | C29: France | D29: 27
A30: Christiane Gioanni/Eldorado Columbian Rush de Solemel | C30: France | D30: 28
A31: Valentin Kuzmin/Gently Born Lodestar | C31: Russia | D31: 29
A32: Arlette Cloes / Ginger van de Duvetorre | C32: Belgium | D32: 30
A33: Esther Niemeijer/Cookie's Fortune Cowgirl Pride | C33: Holland | D33: 31
A34: Katja Tamminen/Cabaroo Glacier Gale | C34: Finland | D34: 32
A35: Sini Eriksson/Mutkis Onnensoturi | C35: Finland | D35: 33
A36: Sidsel Rychter Lauridsen/Germal Prada | C36: Denmark | D36: 34
A37: Lesley Neville/Red Hot Hamish at Choxxstart | C37: Great Britain | D37: 35
A38: Ulrika Persson/Fladdermusens Whispers | C38: Sweden | D38: 36
A39: Jessica Karlgren/Camp Alpha's Izy | C39: Norway | D39: 37
A40: Vanda Gregorová/All That Brandy Gentle Mate | C40: Czech Republic | D40: 38
A41: Polina Ilina/Indigo | C41: Russia | D41: 39
A42: Jules O'Dwyer / Van de Galeystukken Hellraiser | C42: Belgium | D42: 40
A43: Christel van Boven/Gina vom Aranka House | C43: Belgium | D43: 41
D44: 42
D45: 43
D46: 44
D47: 45

Sheet Reserve
A2: Handler / dog | C2: Country | D2: Music
A3: Luc Daems/Tchaka vom Terlüner Schloss | C3: Belgium
A4: Annette Klink Dalgaard/Kløverbakken's Jack Sparrow | C4: Denmark
A6: Tanja Leblanc/Out of the Blue of the Fancy Rotts | C6: Holland
A7: Olga Alimova/Beliy Briz | C7: Russia
A8: Linda Tolkki/Black Zone's Grizzly Bear | C8: Sweden
A9: Cathy Stilkenboom/Noppes | B9: i | C9: Germany
